bitfinex-derivatives/quotes_SOLF0:USTF0_20260222
["timestamp","ask_amount","ask_price","bid_price","bid_amount"]
[1771741148495,8.84122065,85.019,84.984,7.29509674]
[1771741148700,8.84122065,85.018,84.984,7.29509674]
[1771741149001,8.84122065,85.017,84.984,7.29509674]
[1771741149297,18.03902313,85.031,84.991,7.12065485]
[1771741149498,8.83848768,85.03,84.991,7.12065485]
[1771741149698,8.83848768,85.029,84.991,7.12065485]
[1771741149897,8.83848768,85.028,84.991,7.12065485]
[1771741150094,8.83848768,85.027,84.991,7.12065485]
[1771741150295,8.83848768,85.026,84.991,7.12065485]
[1771741150495,8.83848768,85.025,84.991,7.12065485]
[1771741150696,8.83848768,85.024,84.991,7.12065485]
[1771741150995,8.83848768,85.023,84.991,7.12065485]
[1771741151195,8.83848768,85.022,84.991,7.12065485]
[1771741151395,17.89408823,85.028,84.991,7.12065485]
[1771741151597,8.83690678,85.027,84.991,7.12065485]
[1771741151796,8.83690678,85.026,84.991,7.12065485]
[1771741152098,8.83690678,85.025,84.991,7.12065485]
[1771741152401,8.83690678,85.024,84.991,7.12065485]
[1771741152601,17.89408823,85.028,84.991,7.12065485]
[1771741152602,8.83690678,85.023,84.991,7.12065485]
[1771741152899,8.83690678,85.022,84.991,7.12065485]
[1771741153101,17.89408823,85.028,84.991,7.12065485]
[1771741153296,8.83631965,85.027,84.991,7.12065485]
[1771741153496,8.83631965,85.026,84.991,7.12065485]
[1771741153699,8.83631965,85.025,84.991,7.12065485]
[1771741153898,8.83631965,85.024,84.991,7.12065485]
[1771741154099,8.83631965,85.023,84.991,7.12065485]
[1771741154303,17.89408823,85.028,84.991,7.12065485]
[1771741154502,8.83551398,85.027,84.991,7.12065485]
[1771741154801,8.83551398,85.026,84.991,7.12065485]
[1771741155002,8.83551398,85.025,84.991,7.12065485]
[1771741155198,8.83551398,85.024,84.991,7.12065485]
[1771741155398,8.83551398,85.023,84.991,7.12065485]
[1771741155595,17.89408823,85.028,84.991,7.12065485]
[1771741155799,8.83517055,85.027,84.991,7.12065485]
[1771741156098,8.83517055,85.026,84.991,7.12065485]
[1771741156298,8.83517055,85.025,84.991,7.12065485]
[1771741156499,8.83517055,85.024,84.991,7.12065485]
[1771741156701,17.89408823,85.028,84.991,7.12065485]
[1771741157000,8.83486833,85.027,84.991,7.12065485]
[1771741157200,8.83486833,85.026,84.991,7.12065485]
[1771741157401,8.83486833,85.025,84.991,7.12065485]
[1771741157601,8.83486833,85.024,84.991,7.12065485]
[1771741157901,17.89408823,85.028,84.991,7.12065485]
[1771741158101,8.83460125,85.027,84.991,7.12065485]
[1771741158296,8.83460125,85.026,84.991,7.12065485]
[1771741158495,8.83460125,85.025,84.991,7.12065485]
[1771741158697,8.83460125,85.024,84.991,7.12065485]
[1771741158901,17.89408823,85.028,84.991,7.12065485]
[1771741159107,8.83436493,85.027,84.991,7.12065485]
[1771741159303,8.83436493,85.026,84.991,7.12065485]
[1771741159501,8.83436493,85.025,84.991,7.12065485]
[1771741159701,8.83436493,85.024,84.991,7.12065485]
[1771741159904,17.89408823,85.028,84.991,7.12065485]
[1771741160205,8.83415501,85.027,84.991,7.12065485]
[1771741160404,8.83415501,85.026,84.991,7.12065485]
[1771741160606,8.83415501,85.025,84.991,7.12065485]
[1771741160903,8.83415501,85.024,84.991,7.12065485]
[1771741161104,17.89408823,85.028,84.991,7.12065485]
[1771741161301,8.83392238,85.027,84.991,7.12065485]
[1771741161604,8.83392238,85.026,84.991,7.12065485]
[1771741161805,8.83392238,85.025,84.991,7.12065485]
[1771741162000,8.83392238,85.024,84.991,7.12065485]
[1771741162201,17.89408823,85.028,84.991,7.12065485]
[1771741162499,8.83366302,85.027,84.991,7.12065485]
[1771741162699,8.83366302,85.026,84.991,7.12065485]
[1771741162897,8.83366302,85.025,84.991,7.12065485]
[1771741163104,8.83366302,85.024,84.991,7.12065485]
[1771741163297,17.89408823,85.028,84.991,7.12065485]
[1771741163494,8.83353937,85.027,84.991,7.12065485]
[1771741163695,8.83353937,85.026,84.991,7.12065485]
[1771741163901,8.83353937,85.025,84.991,7.12065485]
[1771741164100,8.83353937,85.024,84.991,7.12065485]
[1771741164301,8.83353937,85.023,84.991,7.12065485]
[1771741164505,17.89408823,85.028,84.991,7.12065485]
[1771741164705,8.83342973,85.027,84.991,7.12065485]
[1771741164903,8.83342973,85.026,84.991,7.12065485]
[1771741165104,8.83342973,85.025,84.991,7.12065485]
[1771741165403,8.83342973,85.024,84.991,7.12065485]
[1771741165607,8.83342973,85.023,84.991,7.12065485]
[1771741165807,17.89408823,85.028,84.991,7.12065485]
[1771741166012,8.83333962,85.027,84.991,7.12065485]
[1771741166211,8.83333962,85.026,84.991,7.12065485]
[1771741166406,8.83333962,85.025,84.991,7.12065485]
[1771741166599,8.83333962,85.024,84.991,7.12065485]
[1771741166804,17.89408823,85.028,84.991,7.12065485]
[1771741167103,8.83326709,85.027,84.991,7.12065485]
[1771741167396,8.83324254,85.026,84.991,7.12065485]
[1771741167600,8.83324254,85.025,84.991,7.12065485]
[1771741167798,8.83324254,85.024,84.991,7.12065485]
[1771741168002,17.89408823,85.028,84.991,7.12065485]
[1771741168199,8.83319319,85.027,84.991,7.12065485]
[1771741168398,8.83319319,85.026,84.991,7.12065485]
[1771741168699,8.83319319,85.025,84.991,7.12065485]
[1771741168902,8.83319319,85.024,84.991,7.12065485]
[1771741169105,17.89408823,85.028,84.991,7.12065485]
[1771741169304,8.83315684,85.027,84.991,7.12065485]
[1771741169505,8.83315684,85.026,84.991,7.12065485]
[1771741169705,8.83315684,85.025,84.991,7.12065485]
[1771741169904,8.83315684,85.024,84.991,7.12065485]
[1771741170199,17.89408823,85.028,84.991,7.12065485]
[1771741170499,8.83312469,85.027,84.991,7.12065485]
[1771741170704,8.83312469,85.026,84.991,7.12065485]
[1771741170904,17.89408823,85.028,84.991,7.12065485]
[1771741170905,8.83312469,85.025,84.991,7.12065485]
[1771741171105,8.83312469,85.024,84.991,7.12065485]
[1771741171310,17.89408823,85.028,84.991,7.12065485]
[1771741171509,8.83312288,85.027,84.991,7.12065485]
[1771741171710,8.83312288,85.026,84.991,7.12065485]
[1771741172016,8.83312288,85.025,84.991,7.12065485]
[1771741172309,8.83312288,85.024,84.991,7.12065485]
[1771741172609,17.89408823,85.028,84.991,7.12065485]
[1771741172809,8.83313181,85.027,84.991,7.12065485]
[1771741173009,8.83313181,85.026,84.991,7.12065485]
[1771741173308,8.83313181,85.025,84.991,7.12065485]
[1771741173504,8.83313181,85.024,84.991,7.12065485]
[1771741173701,7.30508823,85.027,84.991,7.12065485]
[1771741173907,8.83316177,85.026,84.991,7.12065485]
[1771741174107,8.83316177,85.025,84.991,7.12065485]
[1771741174407,8.83316177,85.024,84.991,7.12065485]
[1771741174608,7.30508823,85.027,84.991,7.12065485]
[1771741174907,8.83321112,85.026,84.991,7.12065485]
[1771741175107,8.83321112,85.025,84.991,7.12065485]
[1771741175306,8.83321112,85.024,84.991,7.12065485]
[1771741175608,7.30508823,85.027,84.991,7.12065485]
[1771741175806,8.83327743,85.026,84.991,7.12065485]
[1771741176101,8.83327743,85.025,84.991,7.12065485]
[1771741176305,8.83327743,85.024,84.991,7.12065485]
[1771741176506,8.83327743,85.023,84.991,7.12065485]
[1771741176712,7.30508823,85.027,84.991,7.12065485]
[1771741176913,8.83648126,85.026,84.991,7.12065485]
[1771741177111,8.83648126,85.025,84.991,7.12065485]
[1771741177312,8.83648126,85.024,84.991,7.12065485]
[1771741177513,8.83648126,85.023,84.991,7.12065485]
[1771741177716,7.30508823,85.027,84.991,7.12065485]
[1771741177915,8.83658321,85.026,84.991,7.12065485]
[1771741178114,8.83658321,85.025,84.991,7.12065485]
[1771741178415,8.83658321,85.024,84.991,7.12065485]
[1771741178614,8.83658321,85.023,84.991,7.12065485]
[1771741178817,7.30508823,85.027,84.991,7.12065485]
[1771741179116,8.83670302,85.026,84.991,7.12065485]
[1771741179415,8.83670302,85.025,84.991,7.12065485]
[1771741179616,8.83670302,85.024,84.991,7.12065485]
[1771741179916,8.83670302,85.023,84.991,7.12065485]
[1771741180117,7.30508823,85.027,84.991,7.12065485]
[1771741180318,8.83695633,85.026,84.991,7.12065485]
[1771741180507,8.83695633,85.025,84.991,7.12065485]
[1771741180713,8.83695633,85.024,84.991,7.12065485]
[1771741180913,8.83695633,85.023,84.991,7.12065485]
[1771741181212,7.30508823,85.027,84.991,7.12065485]
[1771741181412,8.83718747,85.026,84.991,7.12065485]
[1771741181608,8.83718747,85.025,84.991,7.12065485]
[1771741181820,8.83718747,85.024,84.991,7.12065485]
[1771741182017,8.83718747,85.023,84.991,7.12065485]
[1771741182217,7.30508823,85.027,84.991,7.12065485]
[1771741182417,8.83739547,85.026,84.991,7.12065485]
[1771741182619,8.83739547,85.025,84.991,7.12065485]
[1771741182820,8.83739547,85.024,84.991,7.12065485]
[1771741183020,8.83739547,85.023,84.991,7.12065485]
[1771741183221,7.30508823,85.027,84.991,7.12065485]
[1771741183422,8.8376362,85.026,84.991,7.12065485]
[1771741183721,8.8376362,85.025,84.991,7.12065485]
[1771741184020,8.8376362,85.024,84.991,7.12065485]
[1771741184222,8.8376362,85.023,84.991,7.12065485]
[1771741184418,7.30508823,85.027,84.991,7.12065485]
[1771741184618,8.83790756,85.026,84.991,7.12065485]
[1771741184818,8.83790756,85.025,84.991,7.12065485]
[1771741185119,8.83790756,85.024,84.991,7.12065485]
[1771741185317,7.30508823,85.027,84.991,7.12065485]
[1771741185318,8.83790756,85.023,84.991,7.12065485]
[1771741185518,7.30508823,85.027,84.991,7.12065485]
[1771741185819,8.83795922,85.026,84.991,7.12065485]
[1771741186018,8.83795922,85.025,84.991,7.12065485]
[1771741186218,8.83795922,85.024,84.991,7.12065485]
[1771741186519,8.83795922,85.023,84.991,7.12065485]
[1771741186717,7.30508823,85.027,84.991,7.12065485]
[1771741186912,8.83827064,85.026,84.991,7.12065485]
[1771741187118,8.83827064,85.025,84.991,7.12065485]
[1771741187318,8.83827064,85.024,84.991,7.12065485]
[1771741187519,8.83827064,85.023,84.991,7.12065485]
[1771741187721,7.30508823,85.027,84.991,7.12065485]
[1771741187923,8.83863007,85.026,84.991,7.12065485]
[1771741188117,8.83863007,85.025,84.991,7.12065485]
[1771741188318,7.30508823,85.027,84.991,7.12065485]
[1771741188319,8.83863007,85.024,84.991,7.12065485]
[1771741188519,8.83863007,85.023,84.991,7.12065485]
[1771741188722,7.30508823,85.027,84.991,7.12065485]
[1771741188924,8.83904167,85.026,84.991,7.12065485]
[1771741189122,8.83904167,85.025,84.991,7.12065485]
[1771741189319,23.10258354,85.033,84.993,7.13487719]
[1771741189516,8.8389891,85.032,84.993,7.13487719]
[1771741189721,8.8389891,85.031,84.993,7.13487719]
[1771741189920,8.8389891,85.03,84.993,7.13487719]
[1771741190226,8.8389891,85.029,84.993,7.13487719]
[1771741190525,8.8389891,85.028,84.993,7.13487719]
[1771741190715,8.8389891,85.027,84.995,7.13487719]
[1771741190918,8.8389891,85.026,84.995,7.13487719]
[1771741191115,23.10258354,85.033,84.995,7.13487719]
[1771741191321,8.83913171,85.032,84.995,7.13487719]
[1771741191524,8.83913171,85.031,84.995,7.13487719]
[1771741191726,8.83913171,85.03,84.995,7.13487719]
[1771741191928,8.83913171,85.029,84.995,7.13487719]
[1771741192122,8.83913171,85.028,84.995,7.13487719]
[1771741192425,7.57985654,85.037,85.001,7.13487719]
[1771741193828,7.57985654,85.037,85.002,7.13487719]
[1771741194932,7.57985654,85.037,85.004,10.5918]
[1771741200735,7.57985654,85.037,84.995,10.593]
[1771741202026,7.57985654,85.019,84.986,10.5941]
[1771741202333,35.31,85.063,84.956,7.13487719]
[1771741202334,2.47926321,85.0,84.956,7.13487719]
[1771741202532,7.57985654,84.999,84.956,7.13487719]
[1771741203728,7.57985654,84.999,84.961,10.5972]
[1771741207131,7.57985654,84.989,84.961,10.5972]
[1771741209234,7.57985654,84.989,84.946,7.13487719]
[1771741211137,7.57985654,84.989,84.951,7.20869559]
[1771741211336,7.57985654,84.989,84.961,7.20869559]
[1771741211936,2.47926321,85.01,84.961,7.20869559]
[1771741211937,7.5716918,85.009,84.961,7.20869559]
[1771741214840,2.47926321,85.0,84.961,7.20869559]
[1771741215040,7.5716918,84.999,84.961,7.20869559]
[1771741219146,7.5716918,84.989,84.941,7.39860657]
[1771741221034,7.5716918,84.989,84.943,7.39860657]
[1771741232248,7.5716918,84.989,84.951,7.39860657]
[1771741234350,7.5716918,84.976,84.942,7.39860657]
[1771741234549,7.5716918,84.969,84.931,7.39860657]
[1771741235255,7.5716918,84.966,84.931,7.39860657]
[1771741235853,7.5716918,84.959,84.92,7.39860657]
[1771741236654,7.5716918,84.957,84.92,7.39860657]
[1771741237651,7.5716918,84.955,84.92,7.39860657]
[1771741238552,7.5716918,84.955,84.911,7.54948175]
[1771741243255,7.43922904,84.953,84.911,7.54948175]
[1771741244348,10.5985,84.952,84.911,7.54948175]
[1771741245657,18.03772904,84.952,84.911,7.54948175]
[1771741246057,7.43922904,84.951,84.911,7.54948175]
[1771741265065,7.43922904,84.951,84.877,21.94402238]
[1771741265066,7.43922904,84.949,84.895,7.54948175]
[1771741265267,7.43922904,84.939,84.895,7.54948175]
[1771741265467,190.80141057,84.967,84.895,7.54948175]
[1771741265468,7.43922904,84.929,84.895,7.54948175]
[1771741265665,7.43922904,84.929,84.886,7.54948175]
[1771741271480,7.53587055,84.926,84.886,7.54948175]
[1771741273382,7.03973167,84.924,84.886,7.54948175]
[1771741277284,7.03973167,84.922,84.886,7.54948175]
[1771741278883,7.03973167,84.92,84.886,7.54948175]
[1771741285687,7.03973167,84.92,84.895,0.07434851]
[1771741291085,10.6012,84.93,84.895,7.2287352]
[1771741291384,7.03973167,84.938,84.901,7.15438669]
[1771741292090,10.6004,84.937,84.901,7.15438669]
[1771741302098,17.72743678,84.937,84.901,7.15438669]
[1771741302297,7.12703678,84.936,84.901,7.15438669]
[1771741304997,7.12703678,84.936,84.895,0.07434851]
[1771741306202,7.12703678,84.936,84.895,6.90259836]
[1771741335334,7.43042614,84.934,84.895,6.90259836]
[1771741372869,7.43042614,84.934,84.91,2.48484842]
[1771741380778,7.43042614,84.934,84.903,7.2768792]
[1771741381779,7.43042614,84.934,84.91,2.48484842]
[1771741383379,7.43042614,84.934,84.914,0.07425354]
[1771741385685,6.80348229,84.944,84.914,7.35113274]
[1771741385888,6.80348229,84.944,84.92,2.48484842]
[1771741386188,27.36933928,84.95,84.93,2.48484842]
[1771741391396,27.36933928,84.95,84.923,7.2768792]
[1771741393000,27.36933928,84.95,84.897,21.94402238]
[1771741393001,7.24849623,84.968,84.94,2.48484842]
[1771741393597,7.24849623,84.968,84.941,6.95822733]
[1771741394394,7.24849623,84.968,84.95,2.48484842]
[1771741394795,7.24849623,84.968,84.941,6.95822733]
[1771741398597,7.24849623,84.968,84.95,2.48484842]
[1771741399397,28.59439522,84.983,84.95,2.48484842]
[1771741400100,28.59439522,84.983,84.907,21.96402238]
[1771741400101,28.59439522,84.983,84.96,2.48484842]
[1771741402201,1.24120596,84.982,84.96,2.48484842]
[1771741402701,1.24120596,84.982,84.954,10.5981]
[1771741405906,1.24120596,84.982,84.95,2.48484842]
[1771741406306,1.24120596,84.982,84.907,0.02]
[1771741406307,1.24120596,84.982,84.94,2.48484842]
[1771741406602,28.59439522,84.983,84.907,0.02]
[1771741406603,1.23810827,84.979,84.921,6.95822733]
[1771741407302,1.23933715,84.978,84.926,10.6016]
[1771741407508,1.23933715,84.969,84.926,10.6016]
[1771741416414,1.23933715,84.969,84.92,9.44307575]
[1771741417213,1.23933715,84.969,84.921,6.95822733]
[1771741423313,1.24231574,84.966,84.921,6.95822733]
[1771741425418,1.24928302,84.963,84.921,6.95822733]
[1771741427410,1.25663635,84.972,84.94,9.40243629]
[1771741427616,10.5957,84.975,84.941,6.91925375]
[1771741433217,1.19274259,84.969,84.931,6.95975994]
[1771741434319,1.19274259,84.969,84.94,2.48318254]
[1771741434725,10.5964,84.968,84.94,2.48318254]
[1771741435220,1.20921552,84.967,84.931,6.95975994]
[1771741435424,1.21247224,84.964,84.931,6.95975994]
[1771741440826,10.5957,84.975,84.94,2.48318254]
[1771741441025,10.5957,84.975,84.941,6.96753906]
[1771741444326,10.5967,84.966,84.94,2.16e-05]
[1771741446429,10.5967,84.966,84.941,6.61e-05]
[1771741449235,7.48727106,84.981,84.941,6.61e-05]
[1771741449533,8.79762076,84.98,84.941,6.61e-05]
[1771741449734,7.28504828,84.978,84.941,6.61e-05]
[1771741450132,8.79976265,84.977,84.941,6.61e-05]
[1771741450338,7.28504828,84.978,84.941,6.61e-05]
[1771741450533,7.28504828,84.976,84.941,6.61e-05]
[1771741466050,8.80551105,84.975,84.941,6.61e-05]
[1771741466246,7.28504828,84.976,84.941,6.61e-05]
[1771741466550,7.32736323,84.974,84.941,6.61e-05]
[1771741471053,8.81156404,84.973,84.941,6.61e-05]
[1771741471255,7.32736323,84.974,84.941,6.61e-05]
[1771741471455,7.32736323,84.972,84.941,6.61e-05]
[1771741473154,7.32736323,84.972,84.931,7.04869585]
[1771741474257,10.5951,84.979,84.931,7.04869585]
[1771741474258,7.32736323,84.97,84.931,7.04869585]
[1771741475662,7.32736323,84.97,84.932,10.6008]
[1771741477553,7.32736323,84.97,84.932,17.64949585]
[1771741479558,7.32736323,84.97,84.943,0.07418312]
[1771741483969,8.82280249,84.969,84.943,0.07418312]
[1771741484260,10.5951,84.979,84.943,0.07418312]
[1771741484261,7.46067933,84.967,84.943,0.07418312]
[1771741514292,8.83096305,84.966,84.943,0.07418312]
[1771741514487,7.46067933,84.967,84.943,0.07418312]
[1771741514693,8.83096305,84.966,84.943,0.07418312]
[1771741514893,7.46067933,84.967,84.943,0.07418312]
[1771741515092,7.25371582,84.965,84.943,0.07418312]
[1771741515393,8.83096305,84.964,84.943,0.07418312]
[1771741515593,7.25371582,84.965,84.943,0.07418312]
[1771741515792,8.82999108,84.964,84.943,0.07418312]
[1771741515994,7.25371582,84.965,84.943,0.07418312]
[1771741519594,10.5948,84.981,84.943,7.12320722]
[1771741519794,8.82969081,84.98,84.943,7.12320722]
[1771741519995,8.82969081,84.979,84.943,7.12320722]
[1771741520294,10.5948,84.981,84.95,2.48269244]
[1771741520494,8.82628423,84.98,84.95,2.48269244]
[1771741520690,10.5948,84.981,84.95,2.48269244]
[1771741520691,8.82628423,84.979,84.95,2.48269244]
[1771741520894,10.5948,84.981,84.95,2.48269244]
[1771741521096,8.82628295,84.98,84.95,2.48269244]
[1771741521295,17.84851582,84.981,84.95,2.48269244]
[1771741521296,8.82628295,84.979,84.95,2.48269244]
[1771741521487,17.84851582,84.981,84.95,2.48269244]
[1771741521691,8.82461673,84.98,84.95,2.48269244]
[1771741521893,8.82461673,84.979,84.95,2.48269244]
[1771741522096,17.84851582,84.981,84.95,2.48269244]
[1771741522296,8.82337296,84.98,84.95,2.48269244]
[1771741522496,17.84851582,84.981,84.943,7.12320722]
[1771741522697,8.82337296,84.98,84.943,7.12320722]
[1771741522899,17.84851582,84.981,84.943,7.12320722]
[1771741523098,8.82337296,84.98,84.943,7.12320722]
[1771741523399,17.84851582,84.981,84.943,7.12320722]
[1771741523593,8.82233554,84.98,84.943,7.12320722]
[1771741523790,17.84851582,84.981,84.943,7.12320722]
[1771741524294,11.01924604,85.024,84.97,2.48269244]
[1771741524496,35.34,85.073,84.943,0.07418312]
[1771741524497,39.78315015,85.058,85.01,2.48269244]
[1771741524701,39.78315015,85.058,85.03,2.48269244]
[1771741531706,39.78315015,85.058,85.02,2.48269244]
[1771741532805,39.78315015,85.058,85.006,10.5916]
[1771741533003,39.99839123,85.049,85.006,10.5916]
[1771741560734,39.99839123,85.049,85.01,2.47827487]
[1771741561942,39.99839123,85.049,85.006,10.5916]
[1771741563845,39.99839123,85.049,85.0,2.47827487]
[1771741564646,39.99839123,85.049,85.002,10.5921]
[1771741568954,39.99839123,85.049,85.01,2.47827487]
[1771741569153,40.11105888,85.047,85.01,2.47827487]
[1771741573749,40.11105888,85.047,85.002,10.5921]
[1771741574045,40.12070838,85.045,85.01,2.47827487]
[1771741574845,40.12070838,85.045,85.002,10.5921]
[1771741575244,40.1373007,85.043,85.002,10.5921]
[1771741577154,40.14206722,85.041,85.002,10.5921]
[1771741577354,40.14206722,85.039,85.002,10.5921]
[1771741590170,40.14206722,85.039,85.01,2.47827487]
[1771741590665,40.14206722,85.039,85.002,10.5921]
[1771741601674,21.92076722,85.039,85.011,10.591]
[1771741601875,6.722e-05,85.039,85.02,2.47827487]
[1771741603867,6.722e-05,85.039,85.02,2.47748284]
[1771741607677,6.722e-05,85.039,85.011,10.591]
[1771741610977,19.91506985,85.054,85.011,10.591]
[1771741611278,19.91506985,85.052,85.02,2.47748284]
[1771741611478,8.68968701,85.051,85.02,2.47748284]
[1771741611679,8.68968701,85.05,85.02,2.47748284]
[1771741611880,8.68968701,85.049,85.02,2.47748284]
[1771741612079,8.68968701,85.048,85.02,2.47748284]
[1771741612375,19.9152438,85.05,85.02,2.47748284]
[1771741612575,8.68949522,85.049,85.02,2.47748284]
[1771741612778,8.68949522,85.048,85.02,2.47748284]
[1771741613077,19.95245711,85.048,85.02,2.47748284]
[1771741614082,8.68932722,85.047,85.02,2.47748284]
[1771741614278,19.95245711,85.048,85.02,2.47748284]
[1771741614478,8.6891765,85.047,85.02,2.47748284]
[1771741614671,19.95245711,85.048,85.02,2.47748284]
[1771741614871,28.65914747,85.047,85.02,2.47748284]
[1771741615170,19.96997097,85.047,85.02,2.47748284]
[1771741620687,189.78511713,85.066,85.03,2.47748284]
[1771741620887,8.68804628,85.065,85.03,2.47748284]
[1771741621078,8.68804628,85.064,85.03,2.47748284]
[1771741621384,209.76053348,85.066,85.03,2.47748284]
[1771741621584,8.68258943,85.065,85.03,2.47748284]
[1771741621785,209.76053348,85.066,85.03,2.47748284]
[1771741622084,19.97570215,85.064,85.03,2.47748284]
[1771741628392,19.97570215,85.064,85.031,10.5885]
[1771741629391,19.97570215,85.064,85.04,2.47748284]
[1771741635097,19.97570215,85.064,85.031,10.5885]
[1771741639302,10.5809,85.093,85.04,13.06488284]
[1771741639502,10.5809,85.093,85.05,2.47748284]
[1771741641407,11.12920079,85.076,85.05,2.47748284]
[1771741642708,10.5809,85.093,85.05,2.47748284]
[1771741642907,72.91406819,85.227,84.997,276.69009217]
[1771741642908,79.99163998,85.152,85.054,21.97924969]
[1771741643102,79.99163998,85.152,85.12,2.47748284]
[1771741643103,8.65993982,85.151,85.12,2.47748284]
[1771741643304,29.27071763,85.202,85.017,494.2133]
[1771741643305,3.01270093,85.219,85.121,17.0]
[1771741643505,164.2722,85.259,85.11,2.47748284]
[1771741643712,2.47748284,85.18,85.11,2.47748284]
[1771741644008,2.47748284,85.17,85.1,2.47748284]
[1771741644215,2.47748284,85.18,85.12,2.47748284]
[1771741644407,2.47748284,85.17,85.112,10.5785]
[1771741644707,17.0,85.169,85.13,2.47748284]
[1771741644909,17.0,85.189,85.14,2.47748284]
[1771741645103,17.0,85.189,85.087,14.46447138]
[1771741645104,10.75015292,85.182,85.15,2.47748284]
[1771741645306,10.75015292,85.182,85.079,11.79845848]
[1771741645307,2.47748284,85.22,85.16,2.47748284]
[1771741645605,21.90391561,85.311,85.164,10.5719]
[1771741645606,2.04349473,85.241,85.164,10.5719]
[1771741645805,2.04349473,85.241,85.116,164.5456]
[1771741645806,2.47748284,85.21,85.15,2.47748284]
[1771741646107,164.1716,85.311,85.14,2.47748284]
[1771741646108,10.5629,85.238,85.14,2.47748284]
[1771741646309,2.47748284,85.21,85.15,2.47748284]
[1771741646511,2.47748284,85.2,85.14,2.47748284]
[1771741646710,2.47748284,85.21,85.15,2.47748284]
[1771741647107,20.52799384,85.209,85.15,2.47748284]
[1771741647311,20.52799384,85.209,85.16,2.47748284]
[1771741647613,20.52799384,85.209,85.079,11.79845848]
[1771741647614,20.52799384,85.209,85.17,2.47748284]
[1771741648016,20.52799384,85.209,85.18,2.47748284]
[1771741648406,20.52799384,85.209,85.17,2.47748284]
[1771741650418,20.52799384,85.209,85.158,10.5728]
[1771741650419,20.52799384,85.209,85.18,2.47748284]
[1771741651816,20.52799384,85.209,85.123,10.577]
[1771741652219,20.52799384,85.209,85.17,2.47748284]
[1771741653310,20.52799384,85.209,85.124,1.97941954]
[1771741653516,20.52799384,85.209,85.148,1.97941954]
[1771741656313,20.52799384,85.209,85.15,9.79883091]
[1771741656519,20.52799384,85.209,85.152,9.79883091]
[1771741656719,20.52799384,85.209,85.153,9.52349317]
[1771741656917,20.52799384,85.209,85.126,21.69670708]
[1771741656918,20.52799384,85.209,85.154,9.52349317]
[1771741657120,20.52799384,85.209,85.155,9.52349317]
[1771741657318,20.52799384,85.209,85.156,9.52349317]
[1771741657518,20.52799384,85.209,85.157,9.52349317]
[1771741657718,20.52799384,85.209,85.138,9.79883091]
[1771741657719,20.52799384,85.209,85.158,9.52349317]
[1771741657919,20.52799384,85.209,85.138,9.79883091]
[1771741658218,20.52799384,85.209,85.139,9.51903787]
[1771741658420,20.52799384,85.209,85.14,20.79458905]
[1771741658615,20.52799384,85.209,85.142,11.27555118]
[1771741658817,20.52799384,85.209,85.143,9.51903787]
[1771741659021,11.74293979,85.207,85.144,9.51903787]
[1771741659221,11.74293979,85.207,85.145,9.51903787]
[1771741659422,11.74293979,85.207,85.146,9.51903787]
[1771741659611,11.74293979,85.207,85.147,9.51903787]
[1771741659915,11.74293979,85.207,85.148,9.51903787]
[1771741660115,11.74293979,85.207,85.149,9.51903787]
[1771741660312,11.74293979,85.207,85.15,9.51903787]
[1771741660518,11.74293979,85.207,85.151,9.51903787]
[1771741660722,11.74293979,85.204,85.152,9.51903787]
[1771741660919,11.74293979,85.204,85.153,9.51903787]
[1771741661120,11.74293979,85.204,85.154,9.51903787]
[1771741661319,11.74293979,85.204,85.155,9.51903787]
[1771741661520,11.74293979,85.204,85.156,9.51903787]
[1771741661723,11.74293979,85.204,85.157,9.51903787]
[1771741661915,11.74293979,85.204,85.158,9.51903787]
[1771741662116,11.74293979,85.204,85.159,9.51135906]
[1771741662315,11.74293979,85.204,85.161,11.83563933]
[1771741662519,11.74293979,85.204,85.163,11.83563933]
[1771741662814,11.74293979,85.204,85.164,9.51135906]
[1771741663017,11.74293979,85.204,85.166,11.83563933]
[1771741663218,11.74293979,85.204,85.168,11.83563933]
[1771741663416,11.74293979,85.204,85.169,21.34699839]
[1771741663616,11.74293979,85.204,85.17,9.51135906]
[1771741663921,10.5662,85.211,85.172,11.83563933]
[1771741664220,10.5662,85.211,85.174,11.83563933]
[1771741664421,11.74293979,85.215,85.14,14.40913202]
[1771741664422,11.74293979,85.215,85.176,11.83563933]
[1771741664623,10.5648,85.223,85.177,9.51135906]
[1771741664826,11.74293979,85.222,85.179,11.83563933]
[1771741665027,11.74293979,85.222,85.181,11.83563933]
[1771741665321,11.74293979,85.222,85.183,11.83563933]
[1771741665518,10.565,85.221,85.185,11.83563933]
[1771741665720,10.565,85.221,85.186,9.51135906]
[1771741665921,10.565,85.221,85.187,9.51135906]
[1771741666128,10.565,85.221,85.188,21.34699839]
[1771741666418,10.565,85.221,85.188,11.83563933]
[1771741666622,10.565,85.221,85.188,3.933e-05]
[1771741668226,12.75365647,85.22,85.169,10.68575493]
[1771741668421,12.75365647,85.22,85.17,9.49601983]
[1771741668626,12.75365647,85.22,85.169,10.68575493]
[1771741668627,12.75365647,85.22,85.172,1.2860348]
[1771741668826,12.75365647,85.22,85.174,0.72192277]
[1771741669027,12.75365647,85.22,85.176,0.72192277]
[1771741669230,12.75365647,85.22,85.178,0.72192277]
[1771741669521,12.75365647,85.22,85.18,0.72192277]